[Event "3rd Sunway Formentera-A 2024"]
[Site "Formentera"]
[Date "2024.04.16"]
[Round "7.2"]
[White "Donchenko, Alexander"]
[Black "Manish Anto Cristiano F"]
[Result "1-0"]
[ECO "A29"]
[WhiteElo "2633"]
[BlackElo "2293"]
[Annotator "TA"]
[PlyCount "87"]
[EventDate "2024.04.03"]
[EventType "swiss"]
[EventCountry "ESP"]
[SourceTitle "playchess.com"]
[Source "ChessBase"]
[SourceQuality "1"]
[TimeControl "40/5400+30:1800+30"]

{[%evp 17,87,-1,0,9,19,0,0,14,37,0,0,0,49,36,54,45,58,41,42,0,11,0,0,0,0,-9,62,60,69,57,52,57,112,110,136,140,218,222,264,269,256,262,299,333,306,293,418,308,465,363,433,422,443,459,452,423,611,590,29988,29981,29981,29981,29981,1957,1816,500,1752,1094,1789,1816,5281,5281]} 1. c4 {[%emt 0:00:02]} Nf6 {[%emt 0:00:14]} 2. Nc3 {[%emt 0:00:17]} e5 {[%emt 0:00:12]} 3. Nf3 {[%emt 0:00:09]} Nc6 {[%emt 0:00:08]} 4. g3 {[%emt 0:00:08]} d5 {[%emt 0:00:14]} 5. cxd5 {[%emt 0:00:07]} Nxd5 {[%emt 0:00:07]} 6. Bg2 {[%emt 0:00:07]} Nb6 {[%emt 0:00:12]} 7. O-O {[%emt 0:00:27]} Be7 {[%emt 0:00:09]} 8. b3 {[%emt 0:00:18]} O-O {[%emt 0:01:19]} 9. Bb2 {[%emt 0:00:06]} Be6 {[%emt 0:00:08]} 10. Rc1 {[%emt 0:00:34]} f5 {[%emt 0:03:24]} 11. e4 {[%emt 0:05:28]} Bf6 {[%emt 0:06:30]} 12. Ba3 {[%emt 0:09:08] The position is equal.} Be7 {[%emt 0:11:47]} 13. Bb2 {[%emt 0:03:35]} Bf6 $1 {[%emt 0:02:33]} 14. Re1 {[%emt 0:15:48]} Nb4 {[%emt 0:07:53]} (14... f4 $11) 15. Ba3 $14 {[%emt 0:04:45]} Nd3 {[%emt 0:03:35][%csl LRc1,LRe1]} 16. Bxf8 {[%emt 0:00:08]} Qxf8 {[%emt 0:06:08]} 17. Bh3 {[%emt 0:02:13]} Qc8 {[%emt 0:07:27]} 18. Nb5 {[%emt 0:07:49][%cal Ob5c7] Black must now prevent Nxc7!} Nxc1 {[%emt 0:02:13]} 19. Qxc1 {[%emt 0:01:14]} Qd7 {[%emt 0:03:41]} 20. Qc5 {[%emt 0:04:37]} (20. Nxc7 $2 Rc8 21. Qb2 (21. exf5 $2 Bxf5 22. Bxf5 Qxf5 $19) 21... Rxc7 $19 (21... Qxc7 $2 22. d4 $19)) 20... c6 {[%emt 0:01:38]} 21. Nc3 {[%emt 0:09:05]} (21. Nxe5 $2 Bxe5 (21... Qxd2 22. Nf3 $18) 22. exf5 (22. Qxe5 $2 cxb5 23. Rc1 Bf7 $19) 22... Bf7 (22... Qxd2 $2 23. Qxe5 Bf7 24. Nd6 $18) (22... cxb5 $2 23. fxe6 Qxd2 24. Qxe5 $18) 23. Rxe5 cxb5 24. Qxb5 Qxd2 $19) 21... Re8 {[%emt 0:06:26]} ({Better is} 21... f4 $11 22. Bxe6+ Qxe6) 22. exf5 {[%emt 0:01:34]} (22. Nxe5 $2 Qxd2 23. Rd1 Qc2 $19) 22... Bxf5 {[%emt 0:01:27]} 23. Bxf5 {[%emt 0:00:09]} Qxf5 {[%emt 0:00:05]} 24. Kg2 {[%emt 0:03:47]} Rf8 {[%emt 0:05:57] White leaves nothing to chance now.} ({Black should try} 24... Nd7 $14 25. Qc4+ (25. Qxa7 e4 $14) 25... Kh8) 25. Nxe5 $16 {[%emt 0:02:33] White has more active pieces.} h5 {[%emt 0:06:26]} 26. h4 {[%emt 0:04:59]} Rd8 {[%emt 0:10:12]} (26... Bd8 $16 {is a better defense.} 27. f4 Bf6) 27. d4 $18 {[%emt 0:02:22]} Nd5 {[%emt 0:03:49]} 28. Nxd5 {[%emt 0:01:32]} Rxd5 {[%emt 0:00:02]} 29. Qxa7 {[%emt 0:00:39]} Kh7 {[%emt 0:00:09]} 30. Qxb7 {[%emt 0:05:19]} Rxd4 {[%emt 0:01:31]} 31. Nf3 {[%emt 0:00:37]} ({Weaker is} 31. Nxc6 Rd2 32. Qb6 Bxh4 $16 (32... Rxa2 33. Qe3 $16) (32... Bd4 $2 33. Qxd4 Rxd4 34. Nxd4 $18)) 31... Rd6 {[%emt 0:04:10]} (31... Qd5 {keeps fighting.} 32. Rc1 Rd2) 32. Qb4 {[%emt 0:01:02]} Qd7 {[%emt 0:00:52]} (32... c5 {was worth a try.} 33. Qe4 Qxe4 34. Rxe4 Kg6) 33. Ne5 {[%emt 0:01:36] White wants to mate with Qe4+.} Qc7 {[%emt 0:03:07]} 34. Qe4+ {[%emt 0:00:42]} Kg8 {[%emt 0:00:17]} 35. Nc4 {[%emt 0:00:33]} Rd8 {[%emt 0:01:02] Against Qe8+} 36. Qe6+ {[%emt 0:01:49]} Kh8 {[%emt 0:01:25]} (36... Kh7 $142 37. Qf5+ Kg8 38. Qxh5 Rf8) 37. Ne5 {[%emt 0:00:59] Threatens to win with Nf7+.} Rd2 {[%emt 0:01:48]} 38. Qe8+ {[%emt 0:00:19]} Kh7 {[%emt 0:00:01]} 39. Qxh5+ {[%emt 0:00:09]} Kg8 {[%emt 0:00:05] [#]} 40. Nd7 $1 {[%emt 0:00:00][%mdl 512]} Qxd7 {[%emt 0:00:00] White is clearly winning.} 41. Re8+ {[%emt 0:00:58]} Qxe8 {[%emt 0:01:17]} 42. Qxe8+ {[%emt 0:00:06]} Kh7 {[%emt 0:00:06]} 43. a4 {[%emt 0:00:26]} Bd4 {[%emt 0:01:45]} 44. Qe1 {[%emt 0:00:12] Weighted Error Value: White=0.13 (very precise) /Black=0.56.  Mistake:       	---       	Black=7      Inaccurate:     	White=2     	Black=2      OK:         	White=12    	Black=5      Best:        	White=2     	Black=3      Strong:       	---       	Black=1} 1-0

[Event "3rd Sunway Formentera-A 2024"]
[Site "Formentera"]
[Date "2024.04.16"]
[Round "7.3"]
[White "Mohamed Anees M"]
[Black "Pranav, V."]
[Result "1/2-1/2"]
[ECO "A95"]
[WhiteElo "2253"]
[BlackElo "2604"]
[Annotator "TA"]
[PlyCount "113"]
[EventDate "2024.04.03"]
[EventType "swiss"]
[EventCountry "ESP"]
[SourceTitle "playchess.com"]
[Source "ChessBase"]
[SourceQuality "1"]
[TimeControl "40/5400+30:1800+30"]

{[%evp 15,113,29,36,28,39,31,40,40,41,41,62,45,40,33,41,0,16,0,0,0,0,0,0,-9,0,8,4,-1,0,0,-21,-11,-27,-11,12,-14,-7,-31,0,-28,-23,-18,-16,-24,-18,-18,0,0,0,-25,-43,-75,-33,-65,-67,-153,-166,-168,-98,-93,133,103,264,262,405,430,401,370,407,407,321,267,260,260,260,258,226,97,97,97,97,97,97,97,97,0,0,0,0,0,4,4,4,6,6,4,0,0,8,0]} 1. d4 {[%emt 0:00:04]} f5 {[%emt 0:00:07]} 2. c4 {[%emt 0:00:27]} e6 {[%emt 0:00:06]} 3. g3 {[%emt 0:00:27]} Nf6 {[%emt 0:00:07]} 4. Bg2 {[%emt 0:00:07]} Be7 {[%emt 0:00:06]} 5. Nf3 {[%emt 0:00:26]} Ne4 {[%emt 0:00:24]} 6. Qc2 {[%emt 0:02:56]} d5 {[%emt 0:05:24]} 7. Nc3 {[%emt 0:02:14]} O-O {[%emt 0:05:01]} 8. O-O {[%emt 0:00:44]} c6 {[%emt 0:00:15]} 9. Bf4 {[%emt 0:04:08]} Nd7 {[%emt 0:03:51]} 10. Rad1 {[%emt 0:04:34]} Nd6 {[%emt 0:04:27]} 11. b3 {[%emt 0:05:26] White is slightly better.} Nf6 {[%emt 0:06:41]} 12. Ne5 {[%emt 0:02:39]} Qe8 {[%emt 0:11:51]} 13. Rc1 {[%emt 0:16:04] White is much more active.} Nf7 {[%emt 0:06:44]} 14. Nxf7 {[%emt 0:04:15]} Rxf7 {[%emt 0:04:20]} 15. Nb1 {[%emt 0:01:34]} h6 {[%emt 0:03:04]} 16. Nd2 {[%emt 0:08:01]} g5 {[%emt 0:02:11]} 17. Be5 {[%emt 0:00:21]} Nd7 {[%emt 0:00:25]} 18. Bc7 {[%emt 0:01:07]} Nf8 {[%emt 0:01:26]} 19. Ba5 {[%emt 0:08:05]} b6 {[%emt 0:07:39]} 20. Bc3 {[%emt 0:00:10]} Ba6 {[%emt 0:00:32]} 21. Nf3 {[%emt 0:09:57]} Ng6 {[%emt 0:01:43]} 22. Bb2 {[%emt 0:00:54]} g4 {[%emt 0:07:34]} 23. Ne5 {[%emt 0:00:37]} Nxe5 {[%emt 0:00:43]} 24. dxe5 {[%emt 0:00:07]} Rc8 {[%emt 0:01:41]} 25. Rfd1 {[%emt 0:03:45]} Bg5 {[%emt 0:01:51]} 26. e3 {[%emt 0:01:24]} h5 {[%emt 0:02:02]} 27. Qd2 {[%emt 0:02:28]} dxc4 {[%emt 0:03:59]} 28. bxc4 {[%emt 0:00:22]} h4 {[%emt 0:01:27]} 29. Qc2 {[%emt 0:02:17]} c5 {[%emt 0:06:30]} 30. Rd6 {[%emt 0:02:19]} hxg3 {[%emt 0:02:32]} 31. hxg3 {[%emt 0:00:06]} Bb7 {[%emt 0:00:08]} 32. Bxb7 {[%emt 0:05:19]} (32. Bd5 $5 exd5 33. Rg6+ Rg7 34. Rxg7+ Kxg7 35. Qxf5 $11) 32... Rxb7 {[%emt 0:00:02]} 33. Kf1 {[%emt 0:03:35]} Bh6 {[%emt 0:01:43]} 34. Rcd1 {[%emt 0:02:25][%cal Od6e6]} Bf8 {[%emt 0:01:22]} 35. Qd3 {[%emt 0:01:41]} Bxd6 $17 {[%emt 0:08:19]} 36. exd6 {[%emt 0:00:01]} Qh5 {[%emt 0:00:38]} (36... Qg6 $1 $19 37. a4 Rh7) 37. Ke2 {[%emt 0:01:56] [#]} b5 $2 {[%emt 0:01:15]} 38. Qc3 $40 {[%emt 0:00:47][%mdl 128] White attacks with force.} f4 $2 {[%emt 0:00:29]} 39. exf4 $18 {[%emt 0:00:51] White wants to mate with d7. Black is weak on the dark squares} Rf7 {[%emt 0:00:50]} (39... Rd7 {was worth a try.} 40. cxb5 (40. Qf6 Re8 $18) 40... c4) 40. cxb5 {[%emt 0:00:00]} Rb8 {[%emt 0:00:00]} 41. Qe5 {[%emt 0:07:15]} Qxe5+ {[%emt 0:01:33]} 42. Bxe5 {[%emt 0:00:05][%mdl 4096] Endgame. KRR-KRB} ({Weaker is} 42. fxe5 Rxb5 43. Bc1 Rd7 $11) 42... Rd7 {[%emt 0:00:25]} 43. a4 {[%emt 0:00:19]} a6 {[%emt 0:00:42]} 44. Rh1 {[%emt 0:01:53]} Rb6 {[%emt 0:00:13]} 45. bxa6 {[%emt 0:06:22]} Rxa6 {[%emt 0:00:01] [#]} 46. Rc1 {[%emt 0:00:25]} (46. Rh4 $1 $18) 46... Rxa4 $16 {[%emt 0:01:35]} 47. Rxc5 {[%emt 0:00:05]} Ra2+ {[%emt 0:00:43]} 48. Kf1 {[%emt 0:01:35] aiming for Rc8+.} Kf7 {[%emt 0:00:48]} 49. Rc8 {[%emt 0:01:24]} Rb7 {[%emt 0:03:39] [#]} 50. Kg2 {[%emt 0:09:16]} (50. Rc7+ $1 $16 Rxc7 51. dxc7) 50... Rd2 $1 $11 {[%emt 0:04:57] The position is equal.} 51. Rh8 {[%emt 0:02:14] Hoping for Rh7+.} Rb3 $1 {[%emt 0:00:30] ...Rf3 would now be deadly.} 52. Rh7+ {[%emt 0:01:27]} Ke8 {[%emt 0:00:59]} 53. Rg7 {[%emt 0:01:04]} Rf3 {[%emt 0:01:01]} 54. d7+ {[%emt 0:00:34]} (54. Rxg4 {leads to mate.} Rfxf2+ 55. Kg1 Rg2+ 56. Kf1 Rh2 57. Ke1 Rdg2 58. d7+ Kxd7 59. Kf1 Rc2 60. Kg1 Rhd2 61. Rg7+ Ke8 62. Rg8+ Ke7) 54... Rxd7 {[%emt 0:00:11] Strongly threatening ...Rd2.} 55. Rg8+ {[%emt 0:02:48]} Kf7 {[%emt 0:00:08]} 56. Rg7+ {[%emt 0:00:37]} Ke8 {[%emt 0:00:06] And now ...Rd2 would win.} 57. Rg8+ {[%emt 0:01:19] Black defended with fortune.   Weighted Error Value: White=0.16 (very precise) /Black=0.21 (precise) .  Loses game:     	---       	Black=1      Mistake:       	White=3     	Black=3      Inaccurate:     	White=4     	Black=1      OK:         	White=16    	Black=19     Best:        	White=4     	Black=6      Strong:       	---       	Black=2} 1/2-1/2

[Event "3rd Sunway Formentera-A 2024"]
[Site "Formentera"]
[Date "2024.04.16"]
[Round "7.4"]
[White "Xiao, Tong(Qd)"]
[Black "Fernandez Guillen, Ernesto J."]
[Result "1-0"]
[ECO "C66"]
[WhiteElo "2484"]
[BlackElo "2474"]
[Annotator "TA"]
[PlyCount "91"]
[EventDate "2024.04.03"]
[EventType "swiss"]
[EventCountry "ESP"]
[SourceTitle "playchess.com"]
[Source "ChessBase"]
[SourceQuality "1"]
[TimeControl "40/5400+30:1800+30"]

{[%evp 15,91,29,34,14,32,22,41,0,6,3,0,2,7,-2,0,0,0,0,2,4,15,12,32,22,22,22,271,282,330,141,132,144,132,134,211,203,194,189,198,141,187,182,236,226,332,319,326,327,331,336,365,374,416,408,386,339,343,346,367,276,1357,1291,4133,4133,29986,29985,29988,29989,29992,29993,29993,29994,29994,29995,29995,29996,29996,29997]} 1. e4 {[%emt 0:00:01]} e5 {[%emt 0:12:45]} 2. Nf3 {[%emt 0:00:06]} Nc6 {[%emt 0:00:04]} 3. Bb5 {[%emt 0:00:08]} Nf6 {[%emt 0:00:09]} 4. d3 {[%emt 0:04:38]} d6 {[%emt 0:05:20]} 5. c3 {[%emt 0:00:20]} Bd7 {[%emt 0:00:23]} 6. O-O {[%emt 0:00:34]} g6 {[%emt 0:01:23]} 7. Re1 {[%emt 0:00:20]} Bg7 {[%emt 0:00:11]} 8. Nbd2 {[%emt 0:05:54]} O-O {[%emt 0:03:07]} 9. Nf1 {[%emt 0:00:08]} Nh5 {[%emt 0:01:15][%cal Oc6d4]} 10. Ba4 {[%emt 0:02:42]} h6 {[%emt 0:01:18]} 11. d4 {[%emt 0:03:42] White is slightly better.} exd4 {[%emt 0:03:54]} 12. cxd4 {[%emt 0:01:52]} Bg4 {[%emt 0:00:51]} 13. Bxc6 {[%emt 0:00:42]} bxc6 {[%emt 0:00:02]} 14. Be3 {[%emt 0:02:01]} Rb8 {[%emt 0:10:46]} 15. h3 {[%emt 0:06:00]} Bxf3 {[%emt 0:04:52]} 16. Qxf3 {[%emt 0:00:21]} Qf6 {[%emt 0:02:33]} 17. Qd1 {[%emt 0:18:29]} Rxb2 {[%emt 0:06:42]} 18. Qc1 $1 {[%emt 0:00:41][%csl LRb2,LRc6,LRh6]} Rfb8 {[%emt 0:02:41][%cal Oc6c5]} 19. g4 $36 {[%emt 0:06:29][%mdl 2048] White has some pressure.} (19. Bxh6 $2 Qxf2+ 20. Kh2 Qxg2#) 19... c5 $1 {[%emt 0:11:22]} 20. dxc5 {[%emt 0:01:43]} Rxf2 $2 {[%emt 0:13:08] This move loses the game for Black.} 21. Bxf2 $18 {[%emt 0:01:34]} Nf4 {[%emt 0:03:42] [#]} 22. Bg3 {[%emt 0:06:43]} Nxh3+ $16 {[%emt 0:05:29]} 23. Kg2 {[%emt 0:01:54]} Ng5 {[%emt 0:04:09]} 24. Qe3 {[%emt 0:03:31] aiming for Rab1.} Qe6 {[%emt 0:03:58] [#]} (24... Rb2+ $16 {might work better.} 25. Kh1 dxc5) 25. Rab1 $1 $18 {[%emt 0:01:48]} Rxb1 {[%emt 0:01:04]} 26. Rxb1 {[%emt 0:02:01]} Qxg4 {[%emt 0:00:15]} 27. Nh2 {[%emt 0:01:11]} (27. cxd6 $18 cxd6 28. Nh2 (28. Qxa7 $2 Qxe4+ 29. Kh2 Qxb1 $19)) 27... Qe6 {[%emt 0:01:37]} (27... Qh3+ $16 28. Kg1 Nxe4) 28. Re1 {[%emt 0:02:18][%cal Bb1e1,Be1e2,Be2f2][%mdl 32]} Qxa2+ {[%emt 0:00:02]} (28... dxc5 $142 29. Bf4 (29. Bxc7 Qxa2+ 30. Qf2 Qa4 $16) (29. Qxc5 Qh3+ 30. Kf2 Ne6 $11) 29... Qxa2+ 30. Re2 Qc4) 29. Re2 {[%emt 0:00:26]} Qa1 {[%emt 0:01:00]} (29... Qc4 $142) 30. cxd6 {[%emt 0:01:34]} cxd6 {[%emt 0:00:01]} 31. Nf3 {[%emt 0:00:29] Repels Bd4} ({Don't play} 31. Bxd6 $6 Bd4 32. Re1 Qa2+ 33. Qe2 Qa5 $18) 31... Ne6 {[%emt 0:00:22]} 32. Bxd6 {[%emt 0:00:22]} a5 {[%emt 0:00:50][%cal Ba7a5,Ba5a4][%mdl 32]} 33. Rf2 {[%emt 0:02:23]} a4 {[%emt 0:01:08]} 34. Qe1 {[%emt 0:00:45] Prevents Qb1} Qf6 {[%emt 0:00:28]} 35. Be5 {[%emt 0:00:15]} Qe7 {[%emt 0:00:29]} 36. Bxg7 {[%emt 0:00:44]} Nf4+ {[%emt 0:00:23]} 37. Kg3 {[%emt 0:01:50]} Nd3 {[%emt 0:00:44]} (37... Nh5+ 38. Kh2 Nxg7) 38. Qc3 {[%emt 0:01:52][%cal Og7h6] White threatens Bxh6! and mate.} Nxf2 {[%emt 0:00:25]} 39. Kxf2 {[%emt 0:00:01]} f5 {[%emt 0:00:35][%cal Bf7f5,Bf5e4][%mdl 32]} 40. Bxh6 {[%emt 0:00:00] White mates.} fxe4 {[%emt 0:00:00]} 41. Ng5 {[%emt 0:06:56]} Qa7+ {[%emt 0:02:02]} 42. Kg2 {[%emt 0:00:26][%cal Rc3c8]} Qd7 {[%emt 0:00:26]} 43. Qc4+ {[%emt 0:00:21]} Kh8 {[%emt 0:00:02]} 44. Qxe4 {[%emt 0:00:14]} Qd2+ {[%emt 0:00:27]} 45. Kh3 {[%emt 0:00:16][%cal Re4e8]} Qd7+ {[%emt 0:00:09]} 46. Kh4 {[%emt 0:00:09] Weighted Error Value: White=0.16 (very precise) /Black=0.40.  Loses game:     	---       	Black=1      Missed win:     	White=1     	---        Mistake:       	White=1     	Black=5      Inaccurate:     	White=1     	Black=1      OK:         	White=13    	Black=10     Best:        	White=3     	Black=2      Strong:       	White=1     	Black=1} 1-0

[Event "3rd Sunway Formentera-A 2024"]
[Site "Formentera"]
[Date "2024.04.16"]
[Round "7.5"]
[White "Moussard, Jules"]
[Black "Cervantes Landeiro, Thalia"]
[Result "1-0"]
[ECO "A20"]
[WhiteElo "2610"]
[BlackElo "2219"]
[Annotator "TA"]
[PlyCount "63"]
[EventDate "2024.04.03"]
[EventType "swiss"]
[EventCountry "ESP"]
[SourceTitle "playchess.com"]
[Source "ChessBase"]
[SourceQuality "1"]
[TimeControl "40/5400+30:1800+30"]

{[%evp 9,63,12,15,13,10,0,-1,-15,26,14,14,10,13,-7,0,-18,0,0,-16,-33,23,0,58,57,60,49,46,-7,0,0,0,0,0,-39,0,0,0,0,10,0,254,221,221,219,224,243,714,704,649,672,1579,1634,29992,29993,29993,29994]} 1. c4 {[%emt 0:00:03]} e5 {[%emt 0:00:11]} 2. d3 {[%emt 0:00:06]} Nf6 {[%emt 0:00:50]} 3. Nf3 {[%emt 0:00:09]} Nc6 {[%emt 0:00:07]} 4. a3 {[%emt 0:00:13]} a5 {[%emt 0:01:29]} 5. Nc3 {[%emt 0:02:04]} d5 {[%emt 0:04:42]} 6. cxd5 {[%emt 0:00:18]} Nxd5 {[%emt 0:00:07]} 7. g3 {[%emt 0:00:57]} Be7 {[%emt 0:01:42]} 8. Bg2 {[%emt 0:00:21][%cal Of3e5] The position is equal.} Nxc3 {[%emt 0:08:59]} 9. bxc3 {[%emt 0:00:22]} a4 {[%emt 0:00:15][%cal Oe5e4]} 10. O-O {[%emt 0:04:48]} O-O {[%emt 0:00:33]} 11. d4 {[%emt 0:11:52]} exd4 {[%emt 0:03:13]} 12. cxd4 {[%emt 0:00:29]} Be6 {[%emt 0:05:45]} 13. Bb2 {[%emt 0:04:20]} Na5 {[%emt 0:04:11]} 14. Ne5 {[%emt 0:00:48][%cal Od4d5]} (14. Qxa4 $2 Nb3 15. Qb5 Nxa1 16. Rxa1 c6 $17) 14... Nb3 {[%emt 0:12:32]} (14... c6 $15) 15. Bxb7 {[%emt 0:19:35]} (15. d5 {simplifies} Bf5 16. Ra2 Nc5 17. Re1) 15... Bh3 {[%emt 0:08:43] [#]} 16. Qc2 $1 $14 {[%emt 0:09:59]} Nxa1 {[%emt 0:24:36]} (16... Rb8 17. Nc6) 17. Rxa1 {[%emt 0:00:50][%cal Oe5c6]} Bd6 {[%emt 0:02:38][%cal Od6e5]} 18. Nc4 {[%emt 0:14:22]} (18. Rd1 $14) 18... Rb8 {[%emt 0:03:29]} 19. Bc6 {[%emt 0:05:35]} Qg5 {[%emt 0:03:37]} 20. e4 {[%emt 0:02:39][%cal Be2e4,Be4e5,Be5e6,Be6f7][%mdl 32]} Rfd8 {[%emt 0:03:56]} 21. e5 {[%emt 0:05:44]} Bf8 {[%emt 0:00:12]} 22. Be4 {[%emt 0:00:36] Dodges Bf5} h5 {[%emt 0:01:44]} 23. Re1 {[%emt 0:01:36][%cal Od4d5]} Rb3 {[%emt 0:02:03]} 24. Bc1 {[%emt 0:04:15][%cal Bb2c1,Bc1f4,Bf4e5][%mdl 32]} Qg4 {[%emt 0:00:41][%mdl 8192] [#]} (24... Qe7 $1 $11 {and Black has nothing to worry.}) 25. e6 $1 $18 {[%emt 0:00:37][%mdl 512]} Rxd4 {[%emt 0:02:06] [#] And now ...f6 would win.} (25... fxe6 $2 26. Bh7+ (26. Ne5 Qxe4 27. Qxe4 Bf5 $18) 26... Kh8 27. Ne5 $18) 26. exf7+ {[%emt 0:04:35]} (26. Bh7+ Kh8 27. e7 Bxe7 $15 (27... Rxc4 28. exf8=Q#)) 26... Kh8 {[%emt 0:00:03]} 27. Bf4 {[%emt 0:00:31]} (27. Ne5 $6 Rxe4 28. Rxe4 (28. Qxe4 Qxe4 29. Rxe4 g5 $11) 28... Qf5) 27... Rb5 {[%emt 0:04:28] Against Ne5} (27... Rb8 28. Ne5 (28. Qxa4 $2 Rxe4 29. Ne3 Qxf4 $19) 28... Rxe4 29. Qxe4 Qf5 30. Ng6+ (30. Qxa4 $2 Rb1 $19) 30... Kh7 31. Qxf5 (31. Bxc7 Qxe4 32. Nxf8+ Kh6 33. Bf4+ g5 34. Bxg5+ Kg7) 31... Bxf5 32. Nxf8+ (32. Bxc7 Rc8 $14) 32... Rxf8) 28. Ne5 $1 {[%emt 0:01:34]} (28. Qxa4 $2 {too greedy.} Rxe4 29. Ne3 Rxa4 $19) (28. Bxc7 $2 {is the wrong capture.} Rc5 (28... Qe6 $2 29. Nd6 $19) 29. f3 Qe6 (29... Rdxc4 $2 30. fxg4 Rxc2 31. Bxc2 $19) 30. Qxa4 Qxf7 $19 (30... Rxc7 $2 31. Qe8 $19) (30... Qxc4 $2 31. Qxc4 Rdxc4 32. Bf4 $19) (30... Rcxc4 $2 31. Qe8 $19)) 28... Rxe5 {[%emt 0:00:09]} 29. Bxe5 {[%emt 0:00:03]} Rd7 {[%emt 0:00:41]} 30. Qc1 {[%emt 0:00:46]} (30. Bxc7 Rxf7 31. Be5 Qe6 $16) 30... Qe6 {[%emt 0:00:54] Prevents Qh6+} 31. Qg5 {[%emt 0:00:11]} (31. Bxc7 Qxf7 32. Be5 Kg8 $14) 31... Bg4 {[%emt 0:00:52]} 32. Bg6 {[%emt 0:00:15] Weighted Error Value: White=0.09 (flawless) /Black=0.37.  Loses game:     	---       	Black=1      Mistake:       	White=1     	Black=3      Inaccurate:     	White=1     	Black=2      OK:         	White=5     	Black=8      Best:        	---       	Black=2      Strong:       	White=1     	---        Brilliant:      	White=1     	---} 1-0

[Event "3rd Sunway Formentera-A 2024"]
[Site "Formentera"]
[Date "2024.04.16"]
[Round "7.6"]
[White "Zhu, Hengyi"]
[Black "Vantika Agrawal"]
[Result "1/2-1/2"]
[ECO "B66"]
[WhiteElo "2282"]
[BlackElo "2398"]
[Annotator "TA"]
[PlyCount "74"]
[EventDate "2024.04.03"]
[EventType "swiss"]
[EventCountry "ESP"]
[SourceTitle "playchess.com"]
[Source "ChessBase"]
[SourceQuality "1"]
[TimeControl "40/5400+30:1800+30"]

{[%evp 15,74,38,41,30,42,28,30,29,32,26,43,22,20,20,26,0,0,-63,15,8,25,12,29,-45,-37,-89,-71,-109,-82,-93,0,0,0,0,0,0,0,0,0,0,26,25,22,20,44,44,44,44,44,44,44,44,44,44,44,44,44,44,44,44,44]} 1. e4 {[%emt 0:00:04]} c5 {[%emt 0:00:30]} 2. Nf3 {[%emt 0:00:23]} d6 {[%emt 0:00:22]} 3. d4 {[%emt 0:00:17]} cxd4 {[%emt 0:00:05]} 4. Nxd4 {[%emt 0:00:08]} Nf6 {[%emt 0:00:04]} 5. Nc3 {[%emt 0:00:10]} Nc6 {[%emt 0:00:05]} 6. Bg5 {[%emt 0:02:20]} e6 {[%emt 0:03:07]} 7. Qd2 {[%emt 0:00:19]} a6 {[%emt 0:00:24]} 8. O-O-O {[%emt 0:00:23]} Be7 {[%emt 0:00:18]} 9. Nxc6 {[%emt 0:00:18]} bxc6 {[%emt 0:00:15]} 10. Bxf6 {[%emt 0:00:07]} gxf6 {[%emt 0:01:27]} 11. Bc4 {[%emt 0:00:10] White has an edge.} Bb7 {[%emt 0:03:19] Black is weak on the light squares} 12. Rhe1 {[%emt 0:03:21]} Qc7 {[%emt 0:12:13]} 13. Qe3 {[%emt 0:00:53]} O-O-O {[%emt 0:06:21]} 14. Kb1 {[%emt 0:02:54]} Kb8 {[%emt 0:09:19]} 15. f4 {[%emt 0:03:06]} d5 {[%emt 0:05:16]} 16. Bb3 {[%emt 0:02:47]} (16. Be2 $11) 16... Bd6 {[%emt 0:08:56]} ({Black should try} 16... c5 $1 $15 17. exd5 c4) 17. g3 $11 {[%emt 0:05:04][%cal Re4d5]} h5 {[%emt 0:04:36]} 18. exd5 {[%emt 0:00:38]} cxd5 {[%emt 0:01:46]} 19. Ne2 {[%emt 0:00:19]} (19. f5 $11) 19... h4 $15 {[%emt 0:06:18]} 20. f5 {[%emt 0:03:24]} Bc5 $17 {[%emt 0:05:19]} 21. Qd3 {[%emt 0:08:01] [#] aiming for fxe6.} e5 {[%emt 0:06:14]} 22. Nc3 {[%emt 0:08:59][%cal Rc3d5]} Bb4 {[%emt 0:06:27]} ({Better is} 22... hxg3 $17 23. hxg3 e4) 23. Nxd5 $11 {[%emt 0:07:34]} Bxe1 {[%emt 0:04:25] This pair of bishops is nice.} 24. Nxc7 {[%emt 0:01:29]} Rxd3 {[%emt 0:01:49]} 25. cxd3 {[%emt 0:00:08]} hxg3 {[%emt 0:06:45]} 26. hxg3 {[%emt 0:00:34]} Bxg3 {[%emt 0:01:49]} 27. Nd5 {[%emt 0:00:03]} Bh4 {[%emt 0:05:34][%cal Bg3h4,Bh4g5,Bg5h6,Bh6f8][%mdl 32]} 28. Rh1 {[%emt 0:01:41]} Rh6 {[%emt 0:00:52]} 29. Rh2 {[%emt 0:00:46]} Bc8 {[%emt 0:00:22]} 30. Ne7 {[%emt 0:02:06][%cal Oe7c8] White is slightly better.} Bg5 {[%emt 0:00:37]} 31. Rxh6 {[%emt 0:01:12]} Bxh6 {[%emt 0:00:02]} 32. Bxf7 {[%emt 0:01:16]} Bf8 {[%emt 0:00:19]} 33. Nxc8 {[%emt 0:04:36]} Kxc8 $14 {[%emt 0:00:05] KB-KB} 34. Kc2 {[%emt 0:00:42]} Kc7 {[%emt 0:00:24]} 35. Kc3 {[%emt 0:00:58]} a5 {[%emt 0:00:20]} 36. Kc4 {[%emt 0:00:13]} Kb6 {[%emt 0:00:07]} 37. Kd5 {[%emt 0:01:01] [#] Threatens to win with Ke6.} Bh6 {[%emt 0:02:49] Weighted Error Value: White=0.14 (very precise) /Black=0.12 (very precise) .  Mistake:       	White=3     	Black=2      Inaccurate:     	White=2     	Black=1      OK:         	White=12    	Black=12     Best:        	White=4     	Black=1} 1/2-1/2